bitfinex/quotes_SOLUSD_20251127
["timestamp","ask_amount","ask_price","bid_price","bid_amount"]
[1764242595555,0.69,141.95,141.91,28.00088734]
[1764242596049,3.33736822,141.96,141.91,28.00088734]
[1764242596231,0.69,141.96,141.93,7.04572676]
[1764242597151,0.69,141.96,141.93,6.01126094]
[1764242598550,0.69,141.96,141.92,17.61464499]
[1764242599746,0.69,141.96,141.92,20.95201321]
[1764242599945,3.79,141.96,141.92,20.95201321]
[1764242600150,0.69,141.95,141.92,26.06589864]
[1764242603261,0.69,141.95,141.92,25.04328572]
[1764242606134,0.69,141.95,141.92,24.93228572]
[1764242606340,0.69,141.95,141.92,10.38359144]
[1764242607447,0.69,141.95,141.92,27.99823643]
[1764242609262,0.69,141.95,141.92,17.61464499]
[1764242609563,0.69,141.95,141.92,20.95201321]
[1764242610448,0.69,141.95,141.92,27.99823643]
[1764242612367,0.69,141.95,141.92,25.7179228]
[1764242614368,0.69,141.95,141.92,22.38055458]
[1764242615461,0.69,141.95,141.92,20.7564937]
[1764242616066,0.69,141.95,141.92,17.0476387]
[1764242617046,0.69,141.95,141.92,20.7564937]
[1764242618445,0.69,141.95,141.92,7.04622322]
[1764242619776,0.69,141.95,141.92,24.66086821]
[1764242621650,0.69,141.95,141.92,23.51459524]
[1764242622885,0.69,141.95,141.92,26.85196346]
[1764242624575,0.69,141.95,141.92,20.95201321]
[1764242625861,0.69,141.95,141.89,19.64623222]
[1764242626174,3.33736822,141.92,141.89,7.0476816]
[1764242626473,3.33736822,141.93,141.89,7.0476816]
[1764242626851,0.68,141.92,141.89,7.0476816]
[1764242627283,0.68,141.92,141.89,24.66696414]
[1764242627772,0.68,141.92,141.89,17.61928254]
[1764242629459,0.68,141.92,141.89,24.66696414]
[1764242630669,0.68,141.92,141.89,21.88407591]
[1764242633468,0.68,141.92,141.89,25.22144413]
[1764242633984,0.68,141.92,141.89,10.38504982]
[1764242635365,0.68,141.92,141.89,28.00433236]
[1764242636083,0.68,141.92,141.89,24.66696414]
[1764242636274,0.68,141.92,141.89,28.00433236]
[1764242636779,0.68,141.92,141.89,17.61928254]
[1764242636977,0.68,141.92,141.89,20.95665076]
[1764242637984,0.68,141.92,141.89,28.00433236]
[1764242639884,0.68,141.92,141.89,25.08583297]
[1764242641567,0.68,141.92,141.89,21.74846475]
[1764242641784,0.68,141.92,141.89,25.08583297]
[1764242643097,14.08996826,141.95,141.9,3.33736822]
[1764242643098,0.68,141.93,141.9,3.33736822]
[1764242644690,0.68,141.93,141.91,7.04671975]
[1764242645999,0.68,141.93,141.9,20.95437391]
[1764242646205,0.68,141.93,141.9,17.61700569]
[1764242647067,0.68,141.93,141.91,7.04671975]
[1764242648089,0.68,141.93,141.9,24.66422203]
[1764242649500,0.68,141.93,141.9,25.67252578]
[1764242650669,0.68,141.93,141.91,3.33736822]
[1764242650981,16.308864,141.96,141.91,3.33736822]
[1764242651177,0.71,141.95,141.91,3.33736822]
[1764242651378,0.71,141.95,141.92,7.04622322]
[1764242652304,0.71,141.95,141.91,3.33736822]
[1764242652800,0.71,141.95,141.91,2.13650722]
[1764242653590,0.71,141.95,141.92,7.04622322]
[1764242655481,0.71,141.95,141.92,6.02849933]
[1764242656693,3.81,141.95,141.92,6.02849933]
[1764242656885,0.71,141.94,141.92,6.02849933]
[1764242658404,0.71,141.94,141.91,22.76113576]
[1764242659099,0.71,141.94,141.91,24.89764298]
[1764242659701,0.71,141.94,141.91,22.76113576]
[1764242661505,0.71,141.94,141.91,21.45071135]
[1764242664503,0.71,141.94,141.91,20.29426507]
[1764242667388,0.71,141.94,141.91,7.04671975]
[1764242667581,0.71,141.94,141.9,8.80994492]
[1764242669193,0.71,141.94,141.9,33.47520213]
[1764242670133,2.13650722,141.92,141.88,17.61635105]
[1764242670321,5.23650722,141.91,141.87,17.308864]
[1764242670491,5.23650722,141.91,141.87,24.35737836]
[1764242670689,0.71,141.9,141.87,22.44466746]
[1764242671284,0.71,141.9,141.87,40.06643386]
[1764242674123,0.71,141.9,141.87,38.16552644]
[1764242675801,0.71,141.9,141.87,24.67028076]
[1764242677013,0.71,141.9,141.87,17.6217664]
[1764242678314,0.71,141.9,141.87,19.75827362]
[1764242678629,0.71,141.9,141.87,26.80678798]
[1764242680021,0.71,141.9,141.87,24.96342734]
[1764242681704,0.69,141.93,141.9,8.80994492]
[1764242682029,0.69,141.93,141.91,2.13650722]
[1764242683227,0.69,141.93,141.92,7.04622322]
[1764242684640,0.69,141.95,141.92,26.7982885]
[1764242684800,0.69,141.95,141.94,2.13650722]
[1764242685224,0.69,141.96,141.94,2.13650722]
[1764242686009,0.69,141.96,141.92,36.94253356]
[1764242686327,0.69,141.96,141.93,2.13650722]
[1764242687446,0.69,141.96,141.94,24.65830631]
[1764242687607,0.69,141.96,141.94,45.8185955]
[1764242687807,0.69,141.96,141.94,24.65830631]
[1764242688028,0.69,141.96,141.95,3.1]
[1764242688438,0.69,141.96,141.95,10.14473406]
[1764242689226,0.69,141.96,141.95,9.0440142]
[1764242691840,2.82650722,141.96,141.94,7.04500267]
[1764242692218,0.69,141.95,141.94,5.5899379]
[1764242692821,0.69,141.95,141.93,7.04572676]
[1764242695345,0.69,141.95,141.92,51.91349937]
[1764242695548,0.69,141.95,141.92,44.87020776]
[1764242696455,0.69,141.95,141.93,7.04572676]
[1764242698421,0.69,141.95,141.92,33.92375562]
[1764242699438,0.69,141.95,141.93,7.04572676]
[1764242701418,0.69,141.95,141.92,33.92375562]
[1764242702450,0.69,141.95,141.93,7.04572676]
[1764242704546,0.69,141.95,141.92,33.92375562]
[1764242706454,0.69,141.95,141.93,7.04572676]
[1764242707530,0.69,141.95,141.93,5.41690461]
[1764242707825,0.69,141.97,141.94,2.13650722]
[1764242708023,0.69,141.99,141.96,2.13650722]
[1764242708225,0.69,142.0,141.98,2.13650722]
[1764242708626,0.69,142.0,141.97,2.13650722]
[1764242710352,0.69,142.0,141.97,7.04374163]
[1764242710556,0.69,142.0,141.97,7.80680173]
[1764242710759,0.69,142.0,141.97,25.41615581]
[1764242713346,0.7,142.01,141.99,2.13650722]
[1764242713761,0.7,142.02,142.0,2.13650722]
[1764242714442,0.7,142.02,141.99,2.13650722]
[1764242714642,0.7,142.02,142.0,7.04225352]
[1764242714849,0.7,142.02,141.98,10.37745613]
[1764242715550,0.7,142.02,141.98,7.04324552]
[1764242716458,3.33421061,142.01,141.97,7.04365631]
[1764242716662,7.74133069,142.02,141.96,7.04423781]
[1764242716663,3.33421061,142.0,141.96,7.04423781]
[1764242716837,4.03421061,142.01,141.96,7.04423781]
[1764242717038,4.03421061,142.01,141.96,10.37844842]
[1764242717238,0.7,142.0,141.96,10.37844842]
[1764242717438,3.8,142.0,141.96,10.37844842]
[1764242717855,0.7,141.99,141.96,10.37844842]
[1764242718540,0.7,141.99,141.97,3.33421061]
[1764242718869,0.7,141.99,141.98,7.04324552]
[1764242719851,0.7,141.99,141.97,3.33421061]
[1764242721468,0.7,141.99,141.98,7.04324552]
[1764242722973,0.7,141.99,141.96,20.94480514]
[1764242723148,0.7,141.99,141.96,20.76780514]
[1764242724257,0.7,141.99,141.97,7.04374163]
[1764242724659,0.7,141.99,141.96,24.47783234]
[1764242725878,0.7,141.99,141.96,23.13379742]
[1764242727694,0.7,141.99,141.96,19.42377022]
[1764242729074,0.7,141.99,141.97,3.33421061]
[1764242729782,0.7,141.99,141.98,7.04324552]
[1764242731987,0.7,141.99,141.97,3.33421061]
[1764242733469,0.7,141.99,141.98,7.04324552]
[1764242734279,0.7,141.99,141.97,7.04349054]
[1764242735064,0.7,141.99,141.96,16.68684361]
[1764242737070,0.7,141.99,141.97,3.33421061]
[1764242738087,0.7,141.99,141.98,7.04324552]
[1764242740083,0.7,141.99,141.96,16.68684361]
[1764242740290,0.7,141.99,141.97,3.33421061]
[1764242741186,0.7,141.99,141.97,0.76972801]
[1764242741393,0.7,141.99,141.98,7.04324552]
[1764242744196,0.7,141.99,141.97,0.76972801]
[1764242745694,0.7,141.99,141.98,7.04324552]
[1764242746697,0.7,141.99,141.96,16.68684361]
[1764242746886,3.33421061,141.98,141.95,7.04473406]
[1764242747366,0.69,141.97,141.95,7.04473406]
[1764242747566,0.69,141.97,141.94,17.61254477]
[1764242748964,0.69,141.97,141.94,27.99198575]
[1764242750490,0.69,141.97,141.94,26.93232029]
[1764242752493,0.69,141.97,141.96,7.04423781]
[1764242753598,0.69,141.97,141.95,3.33421061]
[1764242755594,0.69,141.97,141.96,7.04423781]
[1764242756767,0.69,141.97,141.95,3.33421061]
[1764242758481,0.69,141.97,141.96,7.04423781]
[1764242759890,0.69,141.97,141.96,5.93399104]
[1764242760506,0.69,142.01,141.96,26.87879618]
[1764242760684,0.69,142.01,141.99,3.33421061]
[1764242761002,0.69,142.01,141.98,3.33421061]
[1764242761404,0.69,142.01,141.97,3.33421061]
[1764242762200,0.69,142.01,141.96,23.54458557]
[1764242762386,0.69,142.01,141.98,7.04324552]
[1764242762912,0.69,142.01,141.97,20.94307411]
[1764242764395,0.69,142.01,141.98,7.04324552]
[1764242764719,0.69,142.01,141.98,10.37745613]
[1764242765909,0.69,142.01,141.98,3.33421061]
[1764242767188,0.69,142.01,141.98,10.37745613]
[1764242768013,0.69,142.01,141.98,7.04324552]
[1764242768622,4.02421061,142.01,141.98,7.04324552]
[1764242769113,3.1,142.0,141.97,20.94307411]
[1764242769294,3.8,142.0,141.97,20.94307411]
[1764242769494,0.7,141.99,141.97,20.94307411]
[1764242770417,0.7,141.99,141.98,7.04324552]
[1764242771404,0.7,141.99,141.95,24.65656921]
[1764242771606,0.7,141.99,141.96,3.33421061]
[1764242772118,0.7,141.99,141.96,0.3871799]
[1764242773731,0.7,141.99,141.97,7.04374163]
[1764242774203,0.7,141.99,141.98,3.33421061]
[1764242774401,3.75,142.0,141.98,3.33421061]
[1764242774722,3.75,142.0,141.98,2.13454297]
[1764242774919,3.1,142.0,141.98,2.13454297]
[1764242775123,3.75,142.0,141.98,2.13454297]
[1764242775290,0.65,141.99,141.98,2.13454297]
[1764242775496,0.65,141.99,141.97,19.74389705]
[1764242776424,0.65,141.99,141.98,7.04301863]
[1764242776811,3.75,142.01,141.98,26.78567541]
[1764242777004,3.75,142.01,141.99,2.13454297]
[1764242778613,3.75,142.01,141.98,26.3705587]
[1764242778814,0.65,142.01,141.98,26.3705587]
[1764242779527,0.65,142.02,142.0,2.13454297]
[1764242779732,0.65,142.03,142.0,2.13454297]
[1764242779931,0.65,142.03,141.98,24.23601573]
[1764242780131,0.65,142.03,142.01,2.13454297]
[1764242780906,0.65,142.03,142.02,7.04126179]
[1764242781210,0.65,142.03,142.01,2.13454297]
[1764242782339,0.65,142.03,142.02,7.04126179]
[1764242784148,0.65,142.03,142.01,2.13454297]
[1764242785017,0.65,142.05,142.02,2.13454297]
[1764242785436,0.65,142.05,142.0,12.37363168]
[1764242785618,0.65,142.05,142.01,2.13454297]
[1764242786635,2.78454297,142.05,142.01,24.64546585]
[1764242787110,0.65,142.04,142.01,24.64546585]
[1764242787311,0.65,142.04,142.01,23.16498365]
[1764242790232,0.65,142.04,142.01,17.60370823]
[1764242791432,0.65,142.04,142.01,24.64546585]
[1764242792033,0.65,142.04,142.01,19.7382512]
[1764242793219,0.65,142.04,142.01,26.78000882]
[1764242793433,0.65,142.04,142.01,25.49043424]
[1764242793625,0.65,142.04,142.01,23.35589127]
[1764242794935,2.13454297,142.02,142.0,7.04208181]
[1764242795260,5.23454297,142.03,142.0,7.04208181]
[1764242795422,0.65,142.02,142.0,7.04208181]
[1764242795932,0.65,142.02,141.99,24.64894937]
[1764242796438,0.65,142.02,141.99,21.86311362]
[1764242799416,0.65,142.02,141.99,7.04274948]
[1764242800259,2.78454297,142.02,141.99,7.04274948]
[1764242800636,0.72,142.01,141.99,7.04274948]
[1764242801435,0.72,142.01,141.98,7.04324552]
[1764242801634,0.72,142.01,141.98,9.17778849]
[1764242802444,0.72,142.01,141.98,7.8147369]
[1764242802834,0.72,142.01,141.97,24.652782]
[1764242803132,0.72,142.01,141.97,26.78732497]
[1764242803328,0.72,142.01,141.98,2.13454297]
[1764242805028,0.72,142.01,141.99,7.04274948]
[1764242805527,0.72,142.01,141.99,5.33024915]
[1764242806550,0.72,142.01,141.99,7.46479212]
[1764242806749,3.82,142.03,142.0,2.13454297]
[1764242807068,0.72,142.02,142.01,2.13454297]
[1764242807437,0.72,142.03,142.01,2.13454297]
[1764242807830,0.72,142.03,142.01,9.17614563]
[1764242808363,0.72,142.03,142.0,7.04213872]
[1764242808655,2.85454297,142.03,141.98,2.13454297]
[1764242809029,0.72,142.02,141.99,2.13454297]
[1764242810564,0.72,142.02,141.99,9.17729245]
[1764242811336,0.72,142.02,141.99,7.04274948]
[1764242811750,0.72,142.02,141.99,7.8218879]
[1764242813956,0.72,142.02,141.99,5.68734493]
[1764242814155,5.23454297,142.01,141.97,9.1782846]
[1764242814554,0.72,142.0,141.97,26.78763868]
[1764242814761,0.72,142.0,141.97,25.39272863]
[1764242817269,0.72,142.0,141.97,23.25818566]
[1764242817461,0.72,142.0,141.97,25.39272863]
[1764242817800,0.72,142.0,141.97,19.74389705]
[1764242819448,0.72,142.0,141.97,26.78763868]
[1764242819967,2.85454297,142.0,141.96,23.3529015]
[1764242820341,0.72,141.99,141.96,23.3529015]
[1764242820560,0.72,141.99,141.96,7.0440375]
[1764242820964,0.72,141.99,141.96,5.83404115]
[1764242821966,0.72,141.99,141.95,7.04473406]
[1764242822495,0.72,141.99,141.95,9.17927703]
[1764242823873,0.72,141.99,141.95,2.13454297]
[1764242824995,0.72,141.99,141.95,7.04473406]
[1764242825331,0.72,141.99,141.95,9.17927703]
[1764242826292,5.23454297,141.98,141.94,7.04504042]
[1764242826668,0.72,141.97,141.94,7.04504042]
[1764242826864,0.72,141.97,141.94,5.25165757]
[1764242827069,0.72,141.97,141.92,37.02380351]
[1764242827287,0.72,141.97,141.93,2.13454297]
[1764242829478,0.72,141.97,141.93,26.79458664]
[1764242830005,0.72,141.97,141.93,25.95122977]
[1764242830329,17.61254002,141.99,141.95,2.13454297]
[1764242830477,0.71,141.98,141.95,2.13454297]
[1764242833191,3.81,141.98,141.95,2.13454297]
[1764242833901,0.71,141.98,141.96,2.13454297]
[1764242834103,3.1,141.98,141.96,2.13454297]
[1764242834284,3.81,141.98,141.96,2.13454297]
[1764242834685,3.81,141.98,141.96,3.33592923]
[1764242835205,3.81,141.98,141.95,3.33592923]
[1764242836108,3.81,141.98,141.95,0.79290747]
[1764242836305,0.71,141.98,141.95,0.79290747]
[1764242839222,0.71,141.98,141.95,3.33592923]
[1764242840834,0.71,141.99,141.96,3.33592923]
[1764242841015,0.71,141.99,141.97,7.04374163]
[1764242842209,0.71,141.99,141.97,5.42977039]
[1764242844235,18.3210452,142.01,141.98,3.33592923]
[1764242844404,0.71,142.01,141.99,3.33592923]
[1764242845004,0.71,142.01,141.99,13.71241782]
[1764242845224,0.71,142.02,141.99,10.37648859]
[1764242845436,0.71,142.02,142.0,3.33592923]
[1764242845735,4.04592923,142.01,141.98,17.69772608]
[1764242846034,4.04592923,142.01,141.97,23.03912447]
[1764242846337,0.71,142.0,141.97,40.73685055]
[1764242847221,0.71,142.0,141.97,23.12749647]
[1764242847532,7.14592923,142.0,141.97,5.42977039]
[1764242847702,0.71,141.99,141.97,5.42977039]
[1764242848432,0.71,141.99,141.95,37.25586976]
[1764242849326,0.71,141.99,141.96,7.04423781]
[1764242851123,3.81,141.99,141.97,3.33592923]
[1764242851324,3.81,141.99,141.97,1.88737516]
[1764242851522,0.71,141.98,141.97,1.88737516]
[1764242851829,3.81,142.0,141.97,1.88737516]
[1764242852027,0.71,141.99,141.97,1.88737516]
[1764242853835,0.71,141.99,141.97,8.930698]
[1764242854008,0.71,141.99,141.97,7.04332284]
[1764242854210,0.71,141.99,141.97,10.37925207]
[1764242854413,0.71,141.99,141.97,9.35810409]
[1764242855642,0.71,141.99,141.96,27.99076157]
[1764242857420,0.71,141.99,141.96,25.30749066]
[1764242860120,3.81,141.99,141.96,25.30749066]
[1764242860636,3.81,141.99,141.96,10.38016704]
[1764242860843,0.67,141.98,141.96,10.38016704]
[1764242862640,0.67,141.98,141.96,24.65483234]
[1764242862857,0.67,141.98,141.96,7.04423781]
[1764242863737,3.33592923,141.97,141.93,7.04572676]
[1764242863938,3.33592923,141.95,141.92,24.466592]
[1764242864339,0.67,141.94,141.92,7.04608017]
[1764242865030,0.67,141.94,141.91,7.04671975]
[1764242866743,0.67,141.94,141.9,20.95334064]
[1764242866944,4.00592923,141.94,141.89,3.33592923]
[1764242867334,0.67,141.93,141.88,19.408864]
[1764242867533,7.10592923,141.93,141.88,19.64479323]
[1764242867722,7.10592923,141.93,141.89,7.04771301]
[1764242867925,0.67,141.92,141.89,10.38364224]
[1764242869768,0.67,141.92,141.89,8.79747892]
[1764242870847,0.67,141.92,141.89,5.46154969]
[1764242872330,0.67,141.92,141.89,8.79747892]
[1764242872732,0.67,141.92,141.89,3.33592923]
[1764242874456,0.67,141.92,141.89,10.38364224]
[1764242874957,0.67,141.92,141.89,7.04771301]
[1764242875865,0.67,141.92,141.88,37.26479984]
[1764242876258,0.67,141.92,141.88,33.92887061]
[1764242876458,0.67,141.92,141.88,37.26479984]
[1764242876964,0.67,141.92,141.89,7.04771301]
[1764242877883,3.77,141.92,141.89,7.04771301]
[1764242878160,0.67,141.91,141.89,7.04771301]
[1764242879147,0.67,141.91,141.89,5.29985483]
[1764242882274,3.77,141.93,141.9,3.33592923]
[1764242882464,3.77,141.93,141.91,3.33592923]
[1764242882853,0.67,141.94,141.91,3.33592923]
[1764242884074,0.67,141.94,141.91,10.38229642]
[1764242884770,0.67,141.94,141.9,7.04707446]
[1764242884771,3.33592923,141.93,141.9,7.04707446]
[1764242885153,0.67,141.92,141.9,7.04707446]
[1764242885561,0.67,141.92,141.89,20.95521177]
[1764242886756,0.67,141.92,141.89,24.66699555]
[1764242887048,0.67,141.92,141.89,7.04771301]
[1764242887249,3.77,141.92,141.89,7.04771301]
[1764242887657,0.67,141.91,141.89,7.04771301]
[1764242888565,0.67,141.91,141.88,19.64479323]
[1764242890472,0.67,141.91,141.89,7.04771301]
[1764242891585,0.67,141.91,141.88,19.64479323]
[1764242893480,3.8,141.92,141.89,10.38364224]
[1764242893669,0.7,141.91,141.89,10.38364224]
[1764242893873,3.8,141.92,141.89,28.00292478]
[1764242894265,0.7,141.92,141.89,28.00292478]
[1764242894871,0.7,141.92,141.89,20.95521177]
[1764242895251,3.8,141.93,141.9,3.33592923]
[1764242895451,0.7,141.92,141.9,3.33592923]
[1764242895692,3.8,141.93,141.89,24.66699555]
[1764242895852,3.8,141.93,141.9,3.33592923]
[1764242896054,0.7,141.92,141.9,3.33592923]
[1764242896664,0.7,141.92,141.9,2.1367947]
[1764242896879,30.34809716,141.95,141.91,7.04671975]
[1764242897080,0.7,141.94,141.91,7.04671975]
[1764242897687,0.7,141.94,141.9,2.1367947]
[1764242897985,0.7,141.94,141.89,19.75607724]
[1764242897986,2.8367947,141.94,141.89,19.75607724]
[1764242898357,0.7,141.93,141.89,19.75607724]
[1764242899382,0.7,141.93,141.9,7.04721634]
[1764242899883,2.8367947,141.93,141.9,7.04721634]
[1764242900578,0.7,141.92,141.9,7.04721634]
[1764242900782,0.7,141.92,141.9,5.91699103]
[1764242901490,0.7,141.92,141.89,24.66699555]
[1764242903308,0.7,141.92,141.89,26.80379025]
[1764242903866,0.7,141.92,141.89,24.57391399]
[1764242905085,0.7,141.92,141.89,22.43711929]
[1764242905693,0.7,141.93,141.89,24.57391399]
[1764242906909,0.7,141.93,141.89,23.36612228]
[1764242910105,0.7,141.93,141.89,9.18450771]
[1764242910880,2.8367947,141.93,141.89,7.04771301]
[1764242911086,2.8367947,141.93,141.89,24.66699555]
[1764242911294,0.7,141.92,141.89,24.66699555]
[1764242913303,0.7,141.92,141.89,17.61928254]
[1764242914290,0.7,141.92,141.89,24.66699555]
[1764242915812,0.7,141.93,141.89,26.80379025]
[1764242916403,0.7,141.93,141.89,25.77495926]
[1764242916908,12.2815506,141.95,141.89,25.77495926]
[1764242916909,0.7,141.95,141.91,2.1367947]
[1764242917107,0.7,141.95,141.92,2.1367947]
[1764242917486,0.7,141.95,141.92,2.0747947]
[1764242917929,0.7,141.95,141.93,7.04572676]
[1764242919303,0.7,141.95,141.92,19.68992029]
[1764242920200,0.7,141.96,141.92,2.0747947]
[1764242920403,0.7,141.96,141.93,24.66004367]
[1764242920599,0.7,141.96,141.93,26.79683837]
[1764242920997,2.1367947,141.94,141.91,7.0465984]
[1764242921208,0.7,141.93,141.91,7.0465984]
[1764242922220,0.7,141.93,141.9,24.66447846]
[1764242922408,0.7,141.93,141.9,22.36302485]
[1764242925430,0.7,141.93,141.9,7.04721634]
[1764242926531,0.7,141.93,141.9,24.66447846]
[1764242926824,0.7,141.93,141.9,26.80127316]
[1764242928323,0.7,141.95,141.92,2.1367947]
[1764242928525,0.7,141.95,141.9,24.66447846]
[1764242928725,0.7,141.95,141.94,7.04523037]
[1764242929828,0.7,141.96,141.94,7.04523037]
[1764242930246,0.7,141.96,141.94,9.18202507]
[1764242931529,0.7,141.96,141.94,2.1367947]
[1764242932027,0.7,141.96,141.95,2.1367947]
[1764242932733,0.7,141.97,141.96,7.04423781]
[1764242932939,0.7,141.97,141.96,9.18103251]
[1764242933115,0.7,141.98,141.96,26.79162704]
[1764242933316,0.7,141.98,141.97,2.1367947]
[1764242934335,0.7,141.98,141.97,9.18053633]
[1764242937736,0.7,141.98,141.97,2.1367947]
[1764242938139,26.45035768,142.02,141.97,2.1367947]
[1764242938140,0.7,141.99,141.97,2.1367947]
[1764242938339,0.7,141.99,141.98,2.1367947]
[1764242940333,0.7,141.99,141.98,9.18004022]
[1764242940636,0.7,141.99,141.98,26.78815403]
[1764242940837,3.1,142.02,141.98,24.92639614]
[1764242941030,0.7,142.0,141.98,24.65135933]
[1764242941217,0.7,142.0,141.99,2.1367947]
[1764242941946,0.7,142.01,142.0,7.04225352]
[1764242942242,0.7,142.01,142.0,9.17904822]
[1764242942726,0.7,142.01,141.96,17.60981688]
[1764242942935,0.7,142.01,141.97,2.1367947]
[1764242943524,0.7,142.01,141.98,2.1367947]
[1764242943725,3.8,142.01,141.98,2.1367947]
[1764242943925,3.8,142.01,141.99,7.04274948]
[1764242944148,0.7,142.0,141.99,7.04274948]
[1764242945747,0.7,142.0,141.96,19.49962003]
[1764242945948,0.7,142.0,141.97,2.1367947]
[1764242946844,0.7,142.0,141.96,24.40706314]
[1764242947036,0.7,142.0,141.97,2.1367947]
[1764242947234,0.7,142.0,141.98,2.1367947]
[1764242950250,0.7,142.0,141.97,9.14194437]
[1764242952255,0.7,142.0,141.98,2.1367947]
[1764242953342,0.7,142.0,141.98,9.17994794]
[1764242956058,0.7,142.0,141.98,7.73163491]
[1764242956460,0.7,142.0,141.98,0.68848167]
[1764242956845,0.7,142.0,141.97,9.18029774]
[1764242958561,0.7,142.0,141.97,3.33563797]
[1764242959057,0.7,142.0,141.97,0.91698824]
[1764242959762,0.7,142.0,141.98,3.33563797]
[1764242962167,0.7,142.0,141.97,7.04331493]
[1764242962461,0.7,142.0,141.98,3.33563797]
[1764242963750,7.74230607,142.0,141.95,23.35310428]
[1764242963961,3.33563797,141.99,141.91,35.23246716]
[1764242964141,13.47888349,141.98,141.94,10.380715]
[1764242964461,14.18888349,141.98,141.94,7.04507703]
[1764242964671,0.71,141.97,141.94,7.04507703]
[1764242965269,0.71,141.97,141.94,3.33563797]
[1764242966246,0.71,141.97,141.93,3.33563797]
[1764242967345,0.71,141.97,141.94,7.04523037]
[1764242968344,0.71,141.97,141.93,3.33563797]
[1764242969070,0.71,141.97,141.94,3.33563797]
[1764242970569,0.71,141.97,141.94,10.3804766]
[1764242974442,0.71,141.97,141.94,3.33563797]
[1764242975566,0.71,141.97,141.94,10.3804766]
[1764242977461,0.71,141.97,141.93,3.33563797]
[1764242977659,0.71,141.97,141.93,0.43497559]
[1764242978867,3.1,141.96,141.94,7.04523037]
[1764242979574,0.71,141.95,141.94,7.04523037]
[1764242979975,0.71,141.95,141.92,24.66178128]
[1764242980150,0.71,141.95,141.93,3.33563797]
[1764242980547,20.75743549,141.99,141.94,3.33563797]
[1764242980880,3.1,141.98,141.94,3.33563797]
[1764242981083,3.77,141.98,141.95,3.33563797]
[1764242981264,0.67,141.97,141.95,3.33563797]
[1764242981972,3.1,141.97,141.96,3.33563797]
[1764242982363,3.1,141.97,141.95,10.38012637]
[1764242983869,3.77,141.97,141.95,3.33563797]
[1764242984793,0.67,141.97,141.95,3.33563797]
[1764242985082,3.77,141.98,141.95,3.33563797]
[1764242985492,3.77,141.98,141.95,10.38012637]
[1764242985691,0.67,141.97,141.95,10.38012637]
[1764242989998,0.67,141.97,141.95,9.20405914]
[1764242993076,0.67,141.97,141.95,3.33563797]
[1764242994510,0.67,141.97,141.95,10.38012637]
[1764242995086,0.67,141.97,141.94,17.61255831]
[1764242995288,0.67,141.97,141.95,3.33563797]
[1764242995701,0.67,141.98,141.96,3.33563797]
[1764242996102,0.67,141.98,141.96,1.66699947]
[1764242996879,0.67,141.98,141.97,7.04374163]
[1764242997301,4.00563797,141.98,141.92,27.99316839]
[1764242997610,0.67,141.97,141.93,3.33563797]
[1764242997811,0.67,141.97,141.92,7.04611761]
[1764242997812,0.67,141.97,141.94,3.33563797]
[1764242999114,0.67,141.97,141.95,7.04473406]
[1764243000496,0.67,141.99,141.96,3.33563797]
[1764243000707,0.67,141.98,141.97,3.33563797]
[1764243001111,4.00563797,141.98,141.94,7.04523037]
[1764243001519,0.67,141.97,141.94,7.04523037]
[1764243002208,0.67,141.97,141.93,3.33563797]
[1764243003515,0.67,141.97,141.94,7.04523037]
[1764243005219,0.67,141.97,141.93,3.33563797]
[1764243006013,0.67,141.97,141.95,3.33563797]
[1764243006411,0.67,141.97,141.94,16.308864]
[1764243006612,0.67,141.97,141.94,19.64450197]
[1764243006915,0.67,141.97,141.91,20.5204111]